fUST/lending_fUST_20250523
["ID","MTS","AMOUNT","RATE_DAILY","PERIOD"]
[362056760,1747954243458,-178.58,0.00020467,2]
[362056761,1747954243467,-250.73,0.00020467,2]
[362056762,1747954243477,-430.0,0.00020467,2]
[362056763,1747954243488,-430.0,0.00020467,2]
[362056764,1747954243497,-430.0,0.00020467,2]
[362056765,1747954243507,-207.06331094,0.00020488,3]
[362056766,1747954243519,-430.0,0.0002074,2]
[362056767,1747954243529,-430.0,0.0002074,2]
[362056768,1747954243539,-430.0,0.0002074,2]
[362056769,1747954243548,-500.0,0.0002074,2]
[362056770,1747954243557,-500.0,0.0002074,2]
[362056771,1747954243567,-500.0,0.0002074,2]
[362056773,1747954243576,-500.0,0.0002074,2]
[362056774,1747954243586,-260.60528797,0.0002074,2]
[362056776,1747954243596,-500.0,0.0002074,2]
[362056779,1747954243606,-430.0,0.0002074,2]
[362056782,1747954243616,-476.94859731,0.0002074,2]
[362056785,1747954243626,-430.0,0.0002074,2]
[362056788,1747954243635,-196.27,0.00020741,2]
[362056791,1747954243644,-430.0,0.00020741,2]
[362056793,1747954243654,-294.97,0.00020741,2]
[362056795,1747954243663,-430.0,0.00020741,2]
[362056797,1747954243673,-430.0,0.00020741,2]
[362056799,1747954243682,-538.17,0.00020741,2]
[362056800,1747954243691,-430.0,0.00020741,2]
[362056802,1747954243701,-207.06331094,0.00020782,4]
[362056804,1747954243710,-420.0,0.00020899,2]
[362056806,1747954243720,-420.0,0.00020899,2]
[362056807,1747954243730,-430.0,0.00021014,2]
[362056808,1747954243739,-430.0,0.00021014,2]
[362056809,1747954243750,-24.76310735,0.00021014,2]
[362056821,1747955217200,160.083035,0.00013699,2]
[362056835,1747955250826,-4972.0,0.00017974,2]
[362056938,1747955438225,-860.86693198,0.00017794,2]
[362056939,1747955438237,-878.62109527,0.00017794,2]
[362056940,1747955438249,-3260.51197275,0.00017794,2]
[362056941,1747955438258,-460.50596608,0.000189,2]
[362056942,1747955438268,-298.7548374,0.00019214,2]
[362056943,1747955438277,-160.083035,0.00020187,2]
[362056944,1747955438287,-300.0,0.00020189,2]
[362056945,1747955438297,-300.0,0.00020189,2]
[362056947,1747955438307,-430.0,0.0002019,2]
[362056949,1747955438317,-160.01211807,0.0002019,2]
[362056970,1747955443085,-301.45797818,0.00017616,2]
[362056985,1747955443432,-3987.43998745,0.00017616,2]
[362056986,1747955443442,-1751.42922815,0.000198,2]
[362056987,1747955443452,-1751.42922808,0.000198,2]
[362056988,1747955443463,-1751.42922808,0.000198,2]
[362056989,1747955443472,-1751.42922808,0.000198,2]
[362056990,1747955443483,-1751.42922808,0.000198,2]
[362056991,1747955443494,-1751.42922808,0.00019934,2]
[362056993,1747955443503,-1751.42922808,0.00020141,2]
[362056994,1747955443513,-316.38788193,0.0002019,2]
[362056995,1747955443523,-430.0,0.0002019,2]
[362056996,1747955443532,-1184.24,0.0002019,2]
[362056997,1747955443542,-430.0,0.0002019,2]
[362056998,1747955443551,-430.0,0.0002019,2]
[362056999,1747955443561,-1200.62,0.0002019,2]
[362057000,1747955443571,-1174.38,0.0002019,2]
[362057001,1747955443581,-430.0,0.0002019,2]
[362057002,1747955443590,-392.927534,0.0002019,2]
[362057010,1747955643088,450.0,0.00024,120]
[362057014,1747956348389,160.083035,0.00013699,2]
[362057020,1747956441297,-4869.0,0.00017974,2]
[362057028,1747956484823,242.77,0.00015,2]
[362057041,1747956632575,-307.00397739,0.000189,2]
[362057042,1747956632586,-1541.09169883,0.000199,2]
[362057043,1747956632598,-300.0,0.00019997,2]
[362057044,1747956632608,-300.0,0.00019997,2]
[362057046,1747956632616,-430.0,0.00019998,2]
[362057048,1747956632625,-430.0,0.00019998,2]
[362057049,1747956632635,-430.0,0.00019998,2]
[362057050,1747956632644,-1022.6,0.00019998,2]
[362057051,1747956632655,-430.0,0.00019998,2]
[362057052,1747956632664,-742.91,0.00019998,2]
[362057053,1747956632674,-430.0,0.00019998,2]
[362057054,1747956632683,-430.0,0.00019998,2]
[362057055,1747956632693,-430.0,0.00019998,2]
[362057056,1747956632702,-430.0,0.00019998,2]
[362057058,1747956632711,-688.48,0.00019998,2]
[362057060,1747956632721,-430.0,0.00019998,2]
[362057061,1747956632730,-430.0,0.00019998,2]
[362057063,1747956632739,-430.0,0.00019998,2]
[362057064,1747956632748,-805.81,0.00019998,2]
[362057065,1747956632759,-430.0,0.00019998,2]
[362057066,1747956632768,-430.0,0.00019998,2]
[362057067,1747956632778,-430.0,0.00019998,2]
[362057068,1747956632788,-430.0,0.00019998,2]
[362057069,1747956632797,-430.0,0.00019998,2]
[362057070,1747956632806,-430.0,0.00019998,2]
[362057071,1747956632817,-430.0,0.00019998,2]
[362057072,1747956632827,-430.0,0.00019998,2]
[362057073,1747956632838,-430.0,0.00019998,2]
[362057074,1747956632847,-430.0,0.00019998,2]
[362057075,1747956632858,-430.0,0.00019998,2]
[362057076,1747956632867,-430.0,0.00019998,2]
[362057077,1747956632876,-430.0,0.00019998,2]
[362057078,1747956632886,-456.55,0.00019998,2]
[362057079,1747956632896,-430.0,0.00019998,2]
[362057080,1747956632906,-430.0,0.00019998,2]
[362057081,1747956632916,-1134.89,0.00019998,2]
[362057082,1747956632926,-430.0,0.00019998,2]
[362057083,1747956632936,-430.0,0.00019998,2]
[362057084,1747956632946,-430.0,0.00019998,2]
[362057085,1747956632955,-430.0,0.00019998,2]
[362057086,1747956632965,-430.0,0.00019998,2]
[362057087,1747956632975,-1150.6,0.00019998,2]
[362057088,1747956632984,-430.0,0.00019998,2]
[362057089,1747956632994,-430.0,0.00019998,2]
[362057090,1747956633004,-1125.45,0.00019998,2]
[362057091,1747956633014,-457.1276,0.00019998,2]
[362057092,1747956633023,-3094.50526913,0.00019998,3]
[362057095,1747956638361,-300.0,0.00019997,2]
[362057096,1747956638371,-10336.69822048,0.00019998,3]
[362057097,1747956638381,-30598.13435867,0.00019999,2]
[362057098,1747956638393,-430.0,0.00019999,2]
[362057099,1747956638403,-430.0,0.00019999,2]
[362057100,1747956638413,-614.25751323,0.00019999,2]
[362057101,1747956638423,-430.0,0.00019999,2]
[362057102,1747956638432,-430.0,0.00019999,2]
[362057103,1747956638442,-430.0,0.00019999,2]
[362057104,1747956638451,-430.0,0.00019999,2]
[362057105,1747956638461,-450.0,0.00019999,2]
[362057106,1747956638470,-430.0,0.00019999,2]
[362057107,1747956638479,-430.0,0.00019999,2]
[362057108,1747956638489,-430.0,0.00019999,2]
[362057109,1747956638498,-430.0,0.00019999,2]
[362057110,1747956638507,-430.0,0.00019999,2]
[362057111,1747956638517,-530.0,0.00019999,2]
[362057112,1747956638526,-430.0,0.00019999,2]
[362057113,1747956638536,-430.0,0.00019999,2]
[362057114,1747956638555,-430.0,0.00019999,2]
[362057115,1747956638567,-430.0,0.00019999,2]
[362057116,1747956638577,-430.0,0.00019999,2]
[362057117,1747956638587,-430.0,0.00019999,2]
[362057118,1747956638597,-400.34,0.00019999,2]
[362057119,1747956638607,-430.0,0.00019999,2]
[362057120,1747956638617,-430.0,0.00019999,2]
[362057121,1747956638626,-430.0,0.00019999,2]
[362057122,1747956638635,-430.0,0.00019999,2]
[362057123,1747956638645,-430.0,0.00019999,2]
[362057124,1747956638655,-430.0,0.00019999,2]
[362057125,1747956638664,-430.0,0.00019999,2]
[362057126,1747956638674,-430.0,0.00019999,2]
[362057127,1747956638684,-430.0,0.00019999,2]
[362057128,1747956638694,-430.0,0.00019999,2]
[362057129,1747956638704,-1621.23,0.00019999,2]
[362057130,1747956638714,-430.0,0.00019999,2]
[362057131,1747956638724,-430.0,0.00019999,2]
[362057132,1747956638734,-430.0,0.00019999,2]
[362057133,1747956638744,-430.0,0.00019999,2]
[362057134,1747956638753,-201.77,0.00019999,2]
[362057135,1747956638763,-430.0,0.00019999,2]
[362057136,1747956638772,-430.0,0.00019999,2]
[362057137,1747956638782,-430.0,0.00019999,2]
[362057138,1747956638792,-430.0,0.00019999,2]
[362057139,1747956638802,-430.0,0.00019999,2]
[362057140,1747956639028,-430.0,0.00019999,2]
[362057141,1747956639039,-430.0,0.00019999,2]
[362057142,1747956639050,-430.0,0.00019999,2]
[362057143,1747956639060,-430.0,0.00019999,2]
[362057144,1747956639070,-430.0,0.00019999,2]
[362057145,1747956639079,-1358.17,0.00019999,2]
[362057146,1747956639090,-430.0,0.00019999,2]
[362057147,1747956639107,-430.0,0.00019999,2]
[362057148,1747956639118,-430.0,0.00019999,2]
[362057149,1747956639128,-430.0,0.00019999,2]
[362057150,1747956639139,-430.0,0.00019999,2]
[362057151,1747956639150,-440.56,0.00019999,2]
[362057152,1747956639161,-430.0,0.00019999,2]
[362057153,1747956639171,-430.0,0.00019999,2]
[362057154,1747956639182,-1518.1,0.00019999,2]
[362057155,1747956639192,-430.0,0.00019999,2]
[362057156,1747956639203,-430.0,0.00019999,2]
[362057157,1747956639213,-492.53,0.00019999,2]
[362057158,1747956639225,-430.0,0.00019999,2]
[362057159,1747956639236,-430.0,0.00019999,2]
[362057160,1747956639246,-430.0,0.00019999,2]
[362057161,1747956639255,-430.0,0.00019999,2]
[362057162,1747956639266,-430.0,0.00019999,2]
[362057163,1747956639275,-236.58,0.00019999,2]
[362057164,1747956639285,-430.0,0.00019999,2]
[362057165,1747956639295,-500.0,0.00019999,2]
[362057166,1747956639307,-500.0,0.00019999,2]
[362057167,1747956639317,-400.24755174,0.00019999,2]
[362057168,1747956639326,-500.0,0.00019999,2]
[362057169,1747956639336,-500.0,0.00019999,2]
[362057170,1747956639346,-357.86867676,0.00019999,2]
[362057171,1747956639356,-500.0,0.00019999,2]
[362057172,1747956639366,-500.0,0.00019999,2]
[362057173,1747956639378,-500.0,0.00019999,2]
[362057174,1747956639388,-894.64583333,0.00019999,3]
[362057175,1747956639397,-5000.0,0.0002,2]
[362057176,1747956639408,-5000.0,0.0002,2]
[362057177,1747956639417,-5000.0,0.0002,2]
[362057178,1747956639428,-3884.0,0.0002,2]
[362057179,1747956639438,-53469.23212051,0.0002,2]
[362057180,1747956639448,-1541.09169879,0.00020072,2]
[362057181,1747956639460,-430.0,0.00020189,2]
[362057182,1747956639469,-490.0,0.00020189,2]
[362057183,1747956639478,-430.0,0.00020189,2]
[362057184,1747956639488,-430.0,0.00020189,2]
[362057185,1747956639499,-430.0,0.00020189,2]
[362057186,1747956639510,-430.0,0.00020189,2]
[362057187,1747956639520,-430.0,0.00020189,2]
[362057188,1747956639531,-430.0,0.00020189,2]
[362057189,1747956639543,-430.0,0.00020189,2]
[362057190,1747956639554,-430.0,0.00020189,2]
[362057191,1747956639564,-430.0,0.00020189,2]
[362057192,1747956639575,-430.0,0.00020189,2]
[362057193,1747956639585,-430.0,0.00020189,2]
[362057194,1747956639594,-430.0,0.00020189,2]
[362057195,1747956639604,-400.0,0.00020189,2]
[362057196,1747956639614,-430.0,0.00020189,2]
[362057197,1747956639623,-430.0,0.00020189,2]
[362057198,1747956639634,-430.0,0.00020189,2]
[362057199,1747956639644,-430.0,0.00020189,2]
[362057200,1747956639654,-430.0,0.00020189,2]
[362057201,1747956639664,-430.0,0.00020189,2]
[362057202,1747956639674,-430.0,0.00020189,2]
[362057203,1747956639683,-430.0,0.00020189,2]
[362057204,1747956639693,-430.0,0.00020189,2]
[362057205,1747956639703,-430.0,0.00020189,2]
[362057206,1747956639716,-430.0,0.00020189,2]
[362057207,1747956639726,-430.0,0.00020189,2]
[362057208,1747956639736,-430.0,0.00020189,2]
[362057209,1747956639746,-430.0,0.00020189,2]
[362057210,1747956639757,-430.0,0.00020189,2]
[362057211,1747956639767,-430.0,0.00020189,2]
[362057212,1747956639777,-430.0,0.00020189,2]
[362057213,1747956639787,-266.80575883,0.00020189,2]
[362057214,1747956639797,-334.43236453,0.00020189,2]
[362057215,1747956639807,-430.0,0.00020189,2]
[362057216,1747956639817,-430.0,0.00020189,2]
[362057217,1747956639827,-430.0,0.00020189,2]
[362057218,1747956639838,-430.0,0.00020189,2]
[362057219,1747956639848,-430.0,0.00020189,2]
[362057220,1747956639858,-430.0,0.00020189,2]
[362057221,1747956639867,-430.0,0.00020189,2]
[362057222,1747956639877,-500.0,0.00020189,2]
[362057223,1747956639887,-430.0,0.00020189,2]
[362057224,1747956639897,-430.0,0.00020189,2]
[362057225,1747956639907,-430.0,0.00020189,2]
[362057226,1747956639916,-430.0,0.00020189,2]
[362057227,1747956639927,-430.0,0.00020189,2]
[362057228,1747956639936,-430.0,0.00020189,2]
[362057229,1747956639946,-430.0,0.00020189,2]
[362057230,1747956639956,-430.0,0.00020189,2]
[362057231,1747956639966,-430.0,0.0002019,2]
[362057232,1747956639976,-430.0,0.0002019,2]
[362057233,1747956639985,-430.0,0.0002019,2]
[362057234,1747956639996,-430.0,0.0002019,2]
[362057235,1747956640006,-430.0,0.0002019,2]
[362057236,1747956640016,-430.0,0.0002019,2]
[362057237,1747956640026,-430.0,0.0002019,2]
[362057238,1747956640036,-430.0,0.0002019,2]
[362057239,1747956640046,-430.0,0.0002019,2]
[362057240,1747956640056,-430.0,0.0002019,2]
[362057241,1747956640066,-430.0,0.0002019,2]
[362057242,1747956640076,-430.0,0.0002019,2]
[362057243,1747956640085,-230.56111915,0.00020191,2]
[362057244,1747956640095,-430.0,0.00020191,2]
[362057245,1747956640105,-1541.09169879,0.00020245,2]
[362057247,1747956640115,-430.0,0.00020272,2]
[362057249,1747956640125,-430.0,0.00020272,2]
[362057251,1747956640135,-1022.6,0.00020272,2]
[362057253,1747956640145,-430.0,0.00020272,2]
[362057255,1747956640156,-742.91,0.00020272,2]
[362057257,1747956640166,-430.0,0.00020272,2]
[362057259,1747956640176,-430.0,0.00020272,2]
[362057261,1747956640188,-430.0,0.00020272,2]
[362057263,1747956640198,-688.48,0.00020272,2]
[362057265,1747956640208,-430.0,0.00020272,2]
[362057267,1747956640218,-430.0,0.00020272,2]
[362057270,1747956640229,-805.81,0.00020272,2]
[362057271,1747956640239,-370.0,0.00020272,2]
[362057273,1747956640249,-430.0,0.00020272,2]
[362057275,1747956640259,-430.0,0.00020272,2]
[362057277,1747956640269,-430.0,0.00020272,2]
[362057278,1747956640278,-430.0,0.00020272,2]
[362057280,1747956640288,-430.0,0.00020272,2]
[362057282,1747956640297,-430.0,0.00020272,2]
[362057284,1747956640310,-456.55,0.00020272,2]
[362057285,1747956640320,-430.0,0.00020272,2]
[362057286,1747956640329,-1134.89,0.00020272,2]
[362057287,1747956640339,-430.0,0.00020272,2]
[362057288,1747956640350,-430.0,0.00020272,2]
[362057289,1747956640362,-430.0,0.00020272,2]
[362057290,1747956640372,-381.05038747,0.00020272,2]
[362057291,1747956640383,-1150.6,0.00020272,2]
[362057292,1747956640393,-430.0,0.00020272,2]
[362057293,1747956640403,-1125.45,0.00020272,2]
[362057294,1747956640413,-430.0,0.00020273,2]
[362057295,1747956640423,-430.0,0.00020273,2]
[362057296,1747956640433,-430.0,0.00020273,2]
[362057297,1747956640444,-430.0,0.00020273,2]
[362057298,1747956640454,-430.0,0.00020273,2]
[362057299,1747956640464,-430.0,0.00020273,2]
[362057300,1747956640475,-430.0,0.00020273,2]
[362057301,1747956640486,-1621.23,0.00020273,2]
[362057302,1747956640495,-465.37,0.00020273,2]
[362057303,1747956640505,-508.9,0.00020273,2]
[362057304,1747956640515,-430.0,0.00020273,2]
[362057305,1747956640524,-265.41,0.00020273,2]
[362057306,1747956640534,-430.0,0.00020273,2]
[362057307,1747956640543,-430.0,0.00020273,2]
[362057308,1747956640554,-430.0,0.00020273,2]
[362057309,1747956640564,-430.0,0.00020273,2]
[362057310,1747956640573,-430.0,0.00020273,2]
[362057311,1747956640583,-430.0,0.00020273,2]
[362057312,1747956640592,-1358.17,0.00020273,2]
[362057314,1747956640610,-430.0,0.00020273,2]
[362057316,1747956640625,-430.0,0.00020273,2]
[362057318,1747956640635,-430.0,0.00020273,2]
[362057319,1747956640645,-430.0,0.00020273,2]
[362057320,1747956640655,-440.56,0.00020273,2]
[362057321,1747956640667,-430.0,0.00020273,2]
[362057322,1747956640678,-1518.1,0.00020273,2]
[362057323,1747956640689,-430.0,0.00020273,2]
[362057324,1747956640699,-492.53,0.00020273,2]
[362057325,1747956640709,-430.0,0.00020273,2]
[362057326,1747956640721,-160.0,0.00020294,2]
[362057327,1747956640733,-160.0,0.00020294,2]
[362057328,1747956640743,-422.78357425,0.00020294,2]
[362057329,1747956640753,-212.4501065,0.00020294,2]
[362057330,1747956640764,-894.64583333,0.00020294,2]
[362057331,1747956640773,-160.0,0.00020294,2]
[362057332,1747956640784,-160.0,0.00020294,2]
[362057333,1747956640794,-12645.25887003,0.00020294,2]
[362057334,1747956640805,-160.0,0.00020294,2]
[362057335,1747956640815,-160.0,0.00020294,2]
[362057336,1747956640825,-1541.09169879,0.00020417,3]
[362057337,1747956640836,-430.0,0.00020463,2]
[362057338,1747956640846,-430.0,0.00020463,2]
[362057339,1747956640856,-430.0,0.00020463,2]
[362057340,1747956640866,-430.0,0.00020463,2]
[362057341,1747956640877,-430.0,0.00020463,2]
[362057342,1747956640887,-450.58533415,0.00020463,2]
[362057343,1747956640898,-406.39747164,0.00020463,2]
[362057344,1747956640908,-238.62658928,0.00020463,2]
[362057345,1747956640918,-430.0,0.00020463,2]
[362057346,1747956640928,-430.0,0.00020463,2]
[362057347,1747956640938,-430.0,0.00020463,2]
[362057348,1747956640948,-430.0,0.00020463,2]
[362057349,1747956640958,-430.0,0.00020463,2]
[362057350,1747956640968,-430.0,0.00020463,2]
[362057351,1747956640978,-430.0,0.00020463,2]
[362057352,1747956640988,-430.0,0.00020463,2]
[362057353,1747956640998,-430.0,0.00020463,2]
[362057354,1747956641008,-430.0,0.00020463,2]
[362057355,1747956641018,-430.0,0.00020463,2]
[362057356,1747956641028,-430.0,0.00020463,2]
[362057357,1747956641038,-430.0,0.00020463,2]
[362057358,1747956641047,-462.84438821,0.00020463,2]
[362057359,1747956641057,-430.0,0.00020463,2]
[362057360,1747956641067,-430.0,0.00020463,2]
[362057361,1747956641077,-430.0,0.00020463,2]
[362057362,1747956641087,-500.0,0.00020463,2]
[362057363,1747956641096,-380.48105547,0.00020463,2]
[362057364,1747956641106,-430.0,0.00020463,2]
[362057365,1747956641115,-430.0,0.00020463,2]
[362057366,1747956641125,-470.0,0.00020463,2]
[362057367,1747956641135,-430.0,0.00020464,2]
[362057368,1747956641144,-430.0,0.00020464,2]
[362057369,1747956641154,-430.0,0.00020464,2]
[362057370,1747956641163,-430.0,0.00020464,2]
[362057371,1747956641174,-430.0,0.00020464,2]
[362057372,1747956641183,-430.0,0.00020464,2]
[362057373,1747956641193,-418.08,0.00020464,2]
[362057374,1747956641203,-450.0,0.00020464,2]
[362057375,1747956641213,-485.86816544,0.00020464,2]
[362057376,1747956641222,-430.0,0.00020464,2]
[362057377,1747956641236,-430.0,0.00020465,2]
[362057378,1747956641246,-212.4501065,0.00020466,3]
[362057379,1747956641256,-430.0,0.00020546,2]
[362057380,1747956641265,-430.0,0.00020546,2]
[362057381,1747956641275,-1022.6,0.00020546,2]
[362057382,1747956641285,-742.91,0.00020546,2]
[362057383,1747956641295,-430.0,0.00020546,2]
[362057384,1747956641305,-430.0,0.00020546,2]
[362057385,1747956641316,-430.0,0.00020546,2]
[362057386,1747956641325,-688.48,0.00020546,2]
[362057387,1747956641335,-283.4618019,0.00020546,2]
[362057388,1747956641345,-805.81,0.00020546,2]
[362057389,1747956641354,-430.0,0.00020546,2]
[362057390,1747956641364,-430.0,0.00020546,2]
[362057391,1747956641374,-430.0,0.00020546,2]
[362057392,1747956641384,-430.0,0.00020546,2]
[362057393,1747956641394,-456.55,0.00020546,2]
[362057394,1747956641403,-411.16659005,0.00020546,2]
[362057395,1747956641413,-1134.89,0.00020546,2]
[362057396,1747956641423,-430.0,0.00020546,2]
[362057397,1747956641432,-430.0,0.00020546,2]
[362057398,1747956641442,-430.0,0.00020546,2]
[362057399,1747956641452,-1150.6,0.00020546,2]
[362057400,1747956641461,-430.0,0.00020546,2]
[362057401,1747956641472,-1125.45,0.00020546,2]
[362057402,1747956641482,-430.0,0.00020547,2]
[362057403,1747956641492,-430.0,0.00020547,2]
[362057404,1747956641502,-430.0,0.00020547,2]
[362057405,1747956641512,-259.46,0.00020547,2]
[362057406,1747956641522,-430.0,0.00020547,2]
[362057407,1747956641531,-1621.23,0.00020547,2]
[362057408,1747956641541,-430.0,0.00020547,2]
[362057409,1747956641551,-430.0,0.00020547,2]
[362057410,1747956641561,-430.0,0.00020547,2]
[362057411,1747956641571,-430.0,0.00020547,2]
[362057412,1747956641581,-430.0,0.00020547,2]
[362057413,1747956641590,-430.0,0.00020547,2]
[362057414,1747956641600,-536.29,0.00020547,2]
[362057415,1747956641610,-1358.17,0.00020547,2]
[362057416,1747956641619,-430.0,0.00020547,2]
[362057417,1747956641629,-430.0,0.00020547,2]
[362057418,1747956641639,-430.0,0.00020547,2]
[362057419,1747956641648,-430.0,0.00020547,2]
[362057420,1747956641658,-440.56,0.00020547,2]
[362057421,1747956641668,-430.0,0.00020547,2]
[362057422,1747956641678,-1518.1,0.00020547,2]
[362057423,1747956641688,-430.0,0.00020547,2]
[362057424,1747956641698,-492.53,0.00020547,2]
[362057425,1747956641708,-430.0,0.00020547,2]
[362057426,1747956641717,-1541.09169879,0.0002059,3]
[362057427,1747956641728,-500.0,0.00020607,2]
[362057428,1747956641738,-500.0,0.00020688,2]
[362057429,1747956641749,-500.0,0.00020688,2]
[362057430,1747956641759,-430.0,0.00020737,2]
[362057431,1747956641770,-430.0,0.00020737,2]
[362057432,1747956641780,-430.0,0.00020737,2]
[362057433,1747956641789,-430.0,0.00020737,2]
[362057434,1747956641799,-239.05,0.00020737,2]
[362057435,1747956641809,-430.0,0.00020737,2]
[362057436,1747956641820,-430.0,0.00020737,2]
[362057437,1747956641831,-430.0,0.00020737,2]
[362057438,1747956641841,-430.0,0.00020737,2]
[362057439,1747956641851,-500.0,0.00020737,2]
[362057440,1747956641860,-430.0,0.00020737,2]
[362057441,1747956641871,-295.4318861,0.00020737,2]
[362057442,1747956641882,-313.22,0.00020738,2]
[362057443,1747956641892,-430.0,0.00020738,2]
[362057444,1747956641903,-430.0,0.00020738,2]
[362057445,1747956641912,-430.0,0.00020738,2]
[362057446,1747956641922,-430.0,0.00020738,2]
[362057447,1747956641933,-430.0,0.00020738,2]
[362057448,1747956641944,-430.0,0.00020739,2]
[362057449,1747956641955,-1541.09169879,0.00020762,3]
[362057450,1747956641965,-430.0,0.0002082,2]
[362057451,1747956641976,-430.0,0.0002082,2]
[362057452,1747956641985,-1022.6,0.0002082,2]
[362057453,1747956641996,-742.91,0.0002082,2]
[362057454,1747956642006,-430.0,0.0002082,2]
[362057455,1747956642017,-430.0,0.0002082,2]
[362057456,1747956642027,-430.0,0.0002082,2]
[362057457,1747956642038,-688.48,0.0002082,2]
[362057458,1747956642048,-805.81,0.0002082,2]
[362057459,1747956642058,-502.85,0.0002082,2]
[362057460,1747956642068,-158.598718,0.0002082,2]
[362057461,1747956642078,-430.0,0.0002082,2]
[362057462,1747956642089,-151.0,0.0002082,2]
[362057463,1747956642099,-430.0,0.0002082,2]
[362057464,1747956642108,-430.0,0.0002082,2]
[362057465,1747956642118,-456.55,0.0002082,2]
[362057466,1747956642127,-1134.89,0.0002082,2]
[362057467,1747956642137,-430.0,0.0002082,2]
[362057468,1747956642147,-430.0,0.0002082,2]
[362057469,1747956642157,-430.0,0.0002082,2]
[362057470,1747956642167,-1150.6,0.0002082,2]
[362057471,1747956642178,-430.0,0.0002082,2]
[362057472,1747956642188,-1125.45,0.0002082,2]
[362057473,1747956642197,-430.0,0.00020821,2]
[362057474,1747956642208,-430.0,0.00020821,2]
[362057475,1747956642218,-430.0,0.00020821,2]
[362057476,1747956642228,-1621.23,0.00020821,2]
[362057477,1747956642237,-430.0,0.00020821,2]
[362057478,1747956642247,-430.0,0.00020821,2]
[362057479,1747956642258,-151.0,0.00020821,2]
[362057480,1747956642268,-430.0,0.00020821,2]
[362057481,1747956642279,-430.0,0.00020821,2]
[362057482,1747956642290,-154.11,0.00020821,2]
[362057483,1747956642304,-430.0,0.00020821,2]
[362057484,1747956642315,-1358.17,0.00020821,2]
[362057485,1747956642326,-430.0,0.00020821,2]
[362057486,1747956642336,-430.0,0.00020821,2]
[362057487,1747956642346,-430.0,0.00020821,2]
[362057488,1747956642356,-430.0,0.00020821,2]
[362057489,1747956642366,-440.56,0.00020821,2]
[362057490,1747956642376,-1518.1,0.00020821,2]
[362057491,1747956642386,-430.0,0.00020821,2]
[362057492,1747956642396,-492.53,0.00020821,2]
[362057493,1747956642563,-430.0,0.00020821,2]
[362057494,1747956642573,-1541.09169879,0.00020934,4]
[362057495,1747956642583,-160.083035,0.00020951,2]
[362057496,1747956642593,-1000.0,0.0002101,2]
[362057497,1747956642602,-430.0,0.00021011,2]
[362057498,1747956642612,-314.5,0.00021011,2]
[362057499,1747956642621,-430.0,0.00021011,2]
[362057500,1747956642632,-430.0,0.00021011,2]
[362057501,1747956642642,-500.0,0.00021011,2]
[362057502,1747956642652,-440.0,0.00021011,2]
[362057503,1747956642663,-12645.25887003,0.00021012,3]
[362057504,1747956642673,-151.0,0.00021012,2]